[Event "GER-ch Youth U12 2020"]
[Site "Willingen"]
[Date "2020.10.29"]
[Round "4.7"]
[White "Sundui, Chinguun"]
[Black "Müller, Maximilian"]
[Result "1/2-1/2"]
[ECO "C02"]
[WhiteElo "1788"]
[BlackElo "1691"]
[Annotator "NA RC"]
[PlyCount "106"]
[EventDate "2020.10.27"]
[EventType "swiss"]
[EventRounds "7"]
[EventCountry "GER"]
[SourceTitle "playchess.com"]
[Source "ChessBase"]
[SourceQuality "1"]
[TimeControl "40/5400+30:1800+30"]

1. e4 {[%emt 0:00:00]} e6 {[%emt 0:00:00]} 2. d4 {[%emt 0:00:00]} d5 {[%emt 0:00:00]} 3. e5 {[%emt 0:00:00]} c5 {[%emt 0:00:00]} 4. c3 {[%emt 0:00:00]} Nc6 {[%emt 0:00:00]} 5. Nf3 {[%emt 0:00:04]} Qb6 {[%emt 0:00:00]} 6. Be2 {[%emt 0:00:07]} Nh6 {[%emt 0:00:19]} 7. Bxh6 {[%emt 0:00:12]} gxh6 {[%emt 0:05:31]} 8. Qd2 {[%emt 0:00:16]} Ne7 {[%emt 0:16:40]} 9. O-O {[%emt 0:02:38]} Bd7 {[%emt 0:01:51]} 10. Na3 {[%emt 0:01:07]} a6 {[%emt 0:00:32]} 11. Nc2 {[%emt 0:00:56]} Bb5 {[%emt 0:04:39]} 12. Ne3 {[%emt 0:01:38]} h5 {[%emt 0:09:21]} 13. Bxb5+ {[%emt 0:03:30]} Qxb5 {[%emt 0:00:18]} 14. a4 {[%emt 0:00:27]} Qb6 {[%emt 0:00:58]} 15. Nh4 {[%emt 0:01:49]} Ng6 {[%emt 0:01:55]} 16. Nf3 {[%emt 0:01:07]} Qd8 {[%emt 0:15:47]} 17. dxc5 {[%emt 0:07:47]} Bxc5 {[%emt 0:00:22]} 18. b4 {[%emt 0:00:09]} Be7 {[%emt 0:00:59]} 19. Rfe1 {[%emt 0:08:08]} O-O {[%emt 0:04:35]} 20. Qd4 {[%emt 0:02:04]} Kh8 {[%emt 0:04:16]} 21. c4 {[%emt 0:06:56]} dxc4 {[%emt 0:01:11]} 22. Qxc4 {[%emt 0:00:27]} Bg5 {[%emt 0:03:32]} 23. Rad1 {[%emt 0:04:55]} Qe7 {[%emt 0:00:12]} 24. g3 {[%emt 0:01:26]} Rg8 {[%emt 0:02:33]} 25. Kh1 {[%emt 0:07:24]} h4 {[%emt 0:07:29]} 26. Nxg5 {[%emt 0:07:12]} Qxg5 {[%emt 0:00:05]} 27. f4 {[%emt 0:04:00]} Qh5 {[%emt 0:10:10]} 28. Qe2 {[%emt 0:01:21]} Qxe2 {[%emt 0:00:20]} 29. Rxe2 {[%emt 0:00:04]} hxg3 {[%emt 0:00:06]} 30. hxg3 {[%emt 0:00:08]} Rgd8 {[%emt 0:00:58]} 31. Red2 {[%emt 0:00:32]} Rxd2 {[%emt 0:00:16]} 32. Rxd2 {[%emt 0:00:04]} Kg7 {[%emt 0:02:50]} 33. Kg2 {[%emt 0:00:20]} b5 {[%emt 0:00:43]} 34. a5 {[%emt 0:00:59]} h5 {[%emt 0:01:26]} 35. Kf3 {[%emt 0:01:01]} Ne7 {[%emt 0:03:36]} 36. Rd6 {[%emt 0:00:43]} Kg6 {[%emt 0:01:56]} 37. Ke4 {[%emt 0:00:55]} Nc8 {[%emt 0:02:03]} 38. f5+ {[%emt 0:04:45]} Kg5 {[%emt 0:00:39]} 39. Rd7 {[%emt 0:01:10]} Ra7 {[%emt 0:00:40]} 40. fxe6 {[%emt 0:00:30]} fxe6 {[%emt 0:00:08]} 41. Rd8 {[%emt 0:30:48]} Rc7 {[%emt 0:30:21]} 42. Rg8+ {[%emt 0:01:03]} Kh6 {[%emt 0:00:11]} 43. Re8 {[%emt 0:01:44]} Ne7 {[%emt 0:00:04]} 44. Ra8 {[%emt 0:01:31]} Rc6 {[%emt 0:00:44]} 45. Ra7 {[%emt 0:00:16]} Ng6 {[%emt 0:00:00]} 46. Rd7 {[%emt 0:00:00]} Kg5 {[%emt 0:00:00]} 47. Kd4 {[%emt 0:00:00]} Nf8 {[%emt 0:00:00]} 48. Rd8 {[%emt 0:00:00]} Ng6 {[%emt 0:00:00]} 49. Ke4 {[%emt 0:00:00]} h4 {[%emt 0:00:00]} 50. gxh4+ {[%emt 0:00:00]} Kxh4 {[%emt 0:00:00]} 51. Rg8 {[%emt 0:00:00]} Kg5 {[%emt 0:00:00]} 52. Rd8 {[%emt 0:00:00]} Ne7 {[%emt 0:00:00]} 53. Rd7 {[%emt 0:00:00]} Ng6 {[%emt 0:00:00]} 1/2-1/2

[Event "GER-ch Youth U12 2020"]
[Site "Willingen"]
[Date "2020.10.29"]
[Round "4.8"]
[White "Honisch, Alexander"]
[Black "Sommer, Justus"]
[Result "1-0"]
[ECO "C54"]
[WhiteElo "1667"]
[BlackElo "1845"]
[Annotator "NA RC"]
[PlyCount "93"]
[EventDate "2020.10.27"]
[EventType "swiss"]
[EventRounds "7"]
[EventCountry "GER"]
[SourceTitle "playchess.com"]
[Source "ChessBase"]
[SourceQuality "1"]
[TimeControl "40/5400+30:1800+30"]

{[%evp 13,82,20,32767,6,32767,32767,32767,21,26,40,45,25,32767,32767,18,-34,63,67,57,-64,86,32767,32767,32767,126,117,131,124,32767,61,91,0,32767,32767,32767,32767,135,127,32767,32767,32767,32767,32767,32767,32767,32767,497,559,630,684,651,655,958,741,857,574,783,478,516,491,452,440,438,502,507,517,535,531,507,568,550]} 1. e4 {[%emt 0:00:00]} e5 {[%emt 0:00:08]} 2. Nf3 {[%emt 0:00:41]} Nc6 {[%emt 0:00:16]} 3. Bc4 {[%emt 0:00:51]} Bc5 {[%emt 0:00:14]} 4. c3 {[%emt 0:00:51]} Nf6 {[%emt 0:00:29]} 5. d3 {[%emt 0:00:31]} d6 {[%emt 0:00:20]} 6. O-O {[%emt 0:00:37]} a6 {[%emt 0:00:32]} 7. Bb3 {[%emt 0:01:24]} Ba7 {[%emt 0:00:33]} 8. Nbd2 {[%emt 0:01:21]} h6 {[%emt 0:00:55]} 9. h3 {[%emt 0:10:53]} g5 {[%emt 0:02:40]} 10. Nc4 {[%emt 0:04:54]} g4 {[%emt 0:01:40]} 11. hxg4 {[%emt 0:07:25]} Bxg4 {[%emt 0:00:34]} 12. Be3 {[%emt 0:00:48]} b5 {[%emt 0:02:22]} 13. Bxa7 {[%emt 0:03:08]} bxc4 {[%emt 0:08:17]} 14. Ba4 {[%emt 0:03:16]} Rxa7 {[%emt 0:00:38]} 15. Bxc6+ {[%emt 0:00:28]} Kf8 {[%emt 0:00:05]} 16. d4 {[%emt 0:11:08]} (16. dxc4 $14 Bd7 17. Bxd7 Qxd7 18. Nd2) 16... Rg8 {[%emt 0:11:17]} (16... Nh7 $1 $15 {stays ahead.} 17. Re1 (17. dxe5 $2 Ng5 $19) 17... Ng5) 17. dxe5 {[%emt 0:13:13]} Nh5 {[%emt 0:04:01]} 18. exd6 {[%emt 0:06:07]} Bh3 {[%emt 0:04:21]} ({Black should play} 18... Nf4 $14 19. g3 (19. e5 Bxf3 20. Bxf3 Qh4 $11) 19... Nd3) 19. Ne1 {[%emt 0:02:19]} Nf4 {[%emt 0:05:21]} 20. e5 {[%emt 0:03:40]} Bg4 {[%emt 0:16:00] [#]} 21. dxc7 {[%emt 0:09:50]} ({Only move:} 21. f3 $1 $18 {[%cal Rf3g4]} Bf5 22. d7) 21... Qxc7 {[%emt 0:01:15]} 22. Bf3 {[%emt 0:01:37]} (22. Qd6+ $16 Qxd6 23. exd6) 22... Bxf3 {[%emt 0:02:50]} 23. Qxf3 {[%emt 0:00:18]} Qxe5 {[%emt 0:01:50]} 24. g3 {[%emt 0:01:20]} Re7 {[%emt 0:02:05]} (24... Ne2+ $11 25. Kh2 Rg5) 25. Ng2 {[%emt 0:01:26]} Nd3 {[%emt 0:01:41]} 26. b3 {[%emt 0:00:52]} Qxc3 {[%emt 0:01:03]} 27. bxc4 {[%emt 0:00:55]} Qxc4 {[%emt 0:02:37]} 28. Rfd1 {[%emt 0:01:05]} Ne5 {[%emt 0:01:16]} 29. Qa3 {[%emt 0:01:34]} Ng6 $2 {[%emt 0:04:56]} (29... Qe4 $1 $11) 30. Rac1 {[%emt 0:00:27]} Qe6 {[%emt 0:00:16]} 31. Re1 {[%emt 0:01:44]} Qf6 {[%emt 0:02:04]} 32. Rc7 {[%emt 0:01:56]} a5 {[%emt 0:07:22] [#]} 33. Nf4 $1 {[%emt 0:03:53]} Nxf4 {[%emt 0:02:18]} 34. Qxe7+ {[%emt 0:01:53]} Kg7 {[%emt 0:02:10]} 35. Qxf6+ {[%emt 0:02:01]} Kxf6 {[%emt 0:00:09]} 36. Rc6+ {[%emt 0:00:22]} Ne6 {[%emt 0:00:06]} 37. Kg2 {[%emt 0:00:42]} Rd8 {[%emt 0:00:29]} 38. Ra6 {[%emt 0:01:04]} Rd5 {[%emt 0:00:07]} 39. Re4 {[%emt 0:00:44]} Kg7 {[%emt 0:00:49]} 40. Ra4 {[%emt 0:01:23]} Rd2 {[%emt 0:00:51]} 41. R6xa5 {[%emt 0:31:09]} Rd6 $18 {[%emt 0:30:20]} 42. Ra7 {[%emt 0:00:00]} Rd5 {[%emt 0:00:00]} 43. Re4 {[%emt 0:00:00]} Rd6 {[%emt 0:00:00]} 44. a4 {[%emt 0:00:00]} Kf6 {[%emt 0:00:00]} 45. a5 {[%emt 0:00:00]} Kg6 {[%emt 0:00:00]} 46. Rb4 {[%emt 0:00:00]} Kh5 {[%emt 0:00:00]} 47. Rxf7 {[%emt 0:00:00]} 1-0

[Event "GER-ch Youth U12 2020"]
[Site "Willingen"]
[Date "2020.10.29"]
[Round "4.9"]
[White "Hoppstädter, Daniel"]
[Black "Deschler, Arne"]
[Result "1-0"]
[ECO "D10"]
[WhiteElo "1712"]
[BlackElo "1671"]
[Annotator "NA RC"]
[PlyCount "53"]
[EventDate "2020.10.27"]
[EventType "swiss"]
[EventRounds "7"]
[EventCountry "GER"]
[SourceTitle "playchess.com"]
[Source "ChessBase"]
[SourceQuality "1"]
[TimeControl "40/5400+30:1800+30"]

1. d4 {[%emt 0:00:00]} d5 {[%emt 0:00:00]} 2. c4 {[%emt 0:00:00]} c6 {[%emt 0:00:00]} 3. cxd5 {[%emt 0:00:00]} cxd5 {[%emt 0:00:00]} 4. Nc3 {[%emt 0:00:02]} Nf6 {[%emt 0:00:00]} 5. Bf4 {[%emt 0:00:35]} a6 {[%emt 0:00:39]} 6. e3 {[%emt 0:01:58]} Bf5 {[%emt 0:00:48]} 7. Qb3 {[%emt 0:02:04]} b5 {[%emt 0:01:43]} 8. Nf3 {[%emt 0:02:06]} e6 {[%emt 0:03:30]} 9. Rc1 {[%emt 0:06:35]} Qa5 {[%emt 0:05:45]} 10. a4 {[%emt 0:03:57]} Bb4 {[%emt 0:02:04]} 11. Bc7 {[%emt 0:07:52]} Qxa4 {[%emt 0:00:49]} 12. Qxa4 {[%emt 0:02:00]} bxa4 {[%emt 0:00:46]} 13. Be2 {[%emt 0:04:09]} Nc6 {[%emt 0:03:56]} 14. O-O {[%emt 0:00:44]} Kd7 {[%emt 0:02:10]} 15. Nxa4 {[%emt 0:02:59]} Bd6 {[%emt 0:04:48]} 16. Bxd6 {[%emt 0:02:58]} Kxd6 {[%emt 0:01:24]} 17. Nc5 {[%emt 0:04:43]} Nb4 {[%emt 0:04:18]} 18. Nb7+ {[%emt 0:01:26]} Ke7 {[%emt 0:01:26]} 19. Rc7+ {[%emt 0:01:00]} Kf8 {[%emt 0:02:27]} 20. Ne5 {[%emt 0:01:36]} Bg6 {[%emt 0:01:19]} 21. Nd6 {[%emt 0:04:17]} Ne8 {[%emt 0:02:21]} 22. Nxe8 {[%emt 0:00:28]} Kxe8 {[%emt 0:01:09]} 23. Rfc1 {[%emt 0:01:04]} Rb8 {[%emt 0:03:35]} 24. Rc8+ {[%emt 0:03:41]} Ke7 {[%emt 0:00:15]} 25. R1c7+ {[%emt 0:00:03]} Kf6 {[%emt 0:00:26]} 26. Rxb8 {[%emt 0:00:18]} Rxb8 {[%emt 0:01:51]} 27. Nd7+ {[%emt 0:00:03]} 1-0

[Event "GER-ch Youth U12 2020"]
[Site "Willingen"]
[Date "2020.10.29"]
[Round "4.10"]
[White "Berresheim, Nils"]
[Black "Bräutigam, Alexander"]
[Result "1-0"]
[ECO "D35"]
[WhiteElo "1534"]
[BlackElo "1631"]
[Annotator "NA RC"]
[PlyCount "87"]
[EventDate "2020.10.27"]
[EventType "swiss"]
[EventRounds "7"]
[EventCountry "GER"]
[SourceTitle "playchess.com"]
[Source "ChessBase"]
[SourceQuality "1"]
[TimeControl "40/5400+30:1800+30"]

1. d4 {[%emt 0:00:00]} d5 {[%emt 0:00:00]} 2. c4 {[%emt 0:00:00]} e6 {[%emt 0:00:01]} 3. Nc3 {[%emt 0:00:03]} Nf6 {[%emt 0:00:17]} 4. cxd5 {[%emt 0:00:44]} exd5 {[%emt 0:00:24]} 5. Bg5 {[%emt 0:00:30]} Be7 {[%emt 0:00:17]} 6. e3 {[%emt 0:01:32]} Bf5 {[%emt 0:00:54]} 7. Bd3 {[%emt 0:02:16]} Bxd3 {[%emt 0:00:30]} 8. Qxd3 {[%emt 0:00:18]} c6 {[%emt 0:00:17]} 9. Nf3 {[%emt 0:00:45]} Nbd7 {[%emt 0:00:39]} 10. O-O {[%emt 0:00:36]} O-O {[%emt 0:00:38]} 11. Rab1 {[%emt 0:01:21]} a5 {[%emt 0:01:23]} 12. a3 {[%emt 0:02:03]} h6 {[%emt 0:02:05]} 13. Bf4 {[%emt 0:02:15]} Nh5 {[%emt 0:01:57]} 14. Be5 {[%emt 0:01:22]} f6 {[%emt 0:02:27]} 15. Bg3 {[%emt 0:04:33]} Nxg3 {[%emt 0:00:56]} 16. fxg3 {[%emt 0:01:11]} Bd6 {[%emt 0:01:29]} 17. Nh4 {[%emt 0:04:18]} Re8 {[%emt 0:01:11]} 18. Qg6 {[%emt 0:01:54]} Nf8 {[%emt 0:00:58]} 19. Qg4 {[%emt 0:02:30]} Qd7 {[%emt 0:02:44]} 20. Nf5 {[%emt 0:05:01]} Kh7 {[%emt 0:00:49]} 21. Qh5 {[%emt 0:01:57]} Ng6 {[%emt 0:04:12]} 22. Rbe1 {[%emt 0:03:45]} Rf8 {[%emt 0:01:43]} 23. e4 {[%emt 0:01:22]} Rae8 {[%emt 0:01:08]} 24. exd5 {[%emt 0:01:27]} Rxe1 {[%emt 0:00:41]} 25. Rxe1 {[%emt 0:00:33]} cxd5 {[%emt 0:01:04]} 26. Nxd5 {[%emt 0:02:35]} Bxa3 {[%emt 0:01:36]} 27. Nde3 {[%emt 0:09:43]} Bb4 {[%emt 0:01:48]} 28. Rf1 {[%emt 0:01:54]} Bd2 {[%emt 0:00:43]} 29. Ng4 {[%emt 0:02:48]} Qb5 {[%emt 0:02:52]} 30. Nxg7 {[%emt 0:03:29]} Qxh5 {[%emt 0:00:13]} 31. Nxh5 {[%emt 0:00:17]} f5 {[%emt 0:00:43]} 32. Ngf6+ {[%emt 0:01:32]} Kh8 {[%emt 0:01:01]} 33. d5 {[%emt 0:03:12]} f4 {[%emt 0:00:34]} 34. d6 {[%emt 0:05:07]} Be3+ {[%emt 0:01:12]} 35. Kh1 {[%emt 0:00:22]} Bd4 {[%emt 0:00:06]} 36. d7 {[%emt 0:03:24]} Bxf6 {[%emt 0:01:21]} 37. Nxf6 {[%emt 0:00:27]} Kg7 {[%emt 0:00:47]} 38. Ne8+ {[%emt 0:00:26]} Kf7 {[%emt 0:00:45]} 39. d8=Q {[%emt 0:00:22]} Rxe8 {[%emt 0:00:10]} 40. Qd7+ {[%emt 0:00:44]} Re7 {[%emt 0:00:13]} 41. Qf5+ {[%emt 0:30:34]} Kg7 {[%emt 0:30:13]} 42. gxf4 {[%emt 0:00:14]} b6 {[%emt 0:00:22]} 43. h3 {[%emt 0:00:22]} Re2 {[%emt 0:00:26]} 44. Rc1 1-0

[Event "GER-ch Youth U12 2020"]
[Site "Willingen"]
[Date "2020.10.29"]
[Round "4.12"]
[White "Werner, Florin"]
[Black "Korek, Jakob Alexander"]
[Result "0-1"]
[ECO "C78"]
[WhiteElo "1481"]
[BlackElo "1592"]
[Annotator "NA RC"]
[PlyCount "108"]
[EventDate "2020.10.27"]
[EventType "swiss"]
[EventRounds "7"]
[EventCountry "GER"]
[SourceTitle "playchess.com"]
[Source "ChessBase"]
[SourceQuality "1"]
[TimeControl "40/5400+30:1800+30"]

1. e4 {[%emt 0:00:00]} e5 {[%emt 0:00:00]} 2. Nf3 {[%emt 0:00:00]} Nc6 {[%emt 0:00:05]} 3. Bb5 {[%emt 0:00:00]} a6 {[%emt 0:00:22]} 4. Ba4 {[%emt 0:00:00]} Nf6 {[%emt 0:00:32]} 5. O-O {[%emt 0:00:06]} b5 {[%emt 0:00:26]} 6. Bb3 {[%emt 0:00:07]} Bc5 {[%emt 0:00:31]} 7. Re1 {[%emt 0:00:52]} d6 {[%emt 0:00:35]} 8. c3 {[%emt 0:00:07]} Bb6 {[%emt 0:00:38]} 9. h3 {[%emt 0:00:18]} h6 {[%emt 0:01:05]} 10. d3 {[%emt 0:04:39]} O-O {[%emt 0:02:05]} 11. Nbd2 {[%emt 0:01:46]} Ne7 {[%emt 0:04:22]} 12. Nf1 {[%emt 0:01:56]} Ng6 {[%emt 0:01:34]} 13. d4 {[%emt 0:01:45]} c5 {[%emt 0:03:21]} 14. Ng3 Nh7 {[%emt 0:10:11]} 15. Qd2 {[%emt 0:08:29]} exd4 {[%emt 0:02:33]} 16. cxd4 {[%emt 0:00:24]} Ba5 {[%emt 0:00:20]} 17. Qe2 {[%emt 0:00:33]} Bxe1 {[%emt 0:00:29]} 18. Qxe1 {[%emt 0:00:03]} Re8 {[%emt 0:02:33]} 19. Be3 {[%emt 0:06:37]} Qe7 {[%emt 0:06:01]} 20. dxc5 {[%emt 0:04:07]} dxc5 {[%emt 0:00:28]} 21. Rc1 {[%emt 0:00:43]} c4 {[%emt 0:01:12]} 22. Bc2 {[%emt 0:00:06]} Ne5 {[%emt 0:05:08]} 23. Nd4 {[%emt 0:03:29]} Bd7 {[%emt 0:03:39]} 24. Ndf5 Bxf5 {[%emt 0:00:50]} 25. Nxf5 {[%emt 0:03:29]} Qf6 {[%emt 0:04:44]} 26. f4 {[%emt 0:02:14]} Nc6 {[%emt 0:02:43]} 27. e5 {[%emt 0:00:45]} Qd8 {[%emt 0:06:10]} 28. Qg3 {[%emt 0:02:55]} g6 {[%emt 0:03:38]} 29. Nxh6+ {[%emt 0:00:27]} Kg7 {[%emt 0:02:12]} 30. Nf5+ {[%emt 0:00:26]} Kg8 {[%emt 0:06:07]} 31. Nd6 {[%emt 0:02:00]} Re6 {[%emt 0:02:41]} 32. Rd1 {[%emt 0:01:02]} Qc7 {[%emt 0:01:52]} 33. f5 {[%emt 0:04:40]} Rxe5 {[%emt 0:01:16]} 34. fxg6 {[%emt 0:00:08]} fxg6 {[%emt 0:02:16]} 35. Bh6 {[%emt 0:02:55]} g5 36. h4 {[%emt 0:03:57]} Qe7 {[%emt 0:12:36]} 37. hxg5 {[%emt 0:03:26]} Rd8 {[%emt 0:07:41]} 38. Bxh7+ {[%emt 0:14:22]} Kxh7 {[%emt 0:00:40]} 39. Qf4 {[%emt 0:00:44]} Kg8 {[%emt 0:02:49]} 40. g6 {[%emt 0:06:32]} Re1+ {[%emt 0:02:40]} 41. Rxe1 {[%emt 0:31:22]} Qxe1+ {[%emt 0:30:08]} 42. Kh2 {[%emt 0:00:03]} Qe5 {[%emt 0:00:20]} 43. Qxe5 {[%emt 0:00:08]} Nxe5 {[%emt 0:00:08]} 44. Nb7 {[%emt 0:01:16]} Rd7 {[%emt 0:01:00]} 45. Nc5 {[%emt 0:00:07]} Rc7 {[%emt 0:00:00]} 46. Nxa6 {[%emt 0:00:00]} Ra7 {[%emt 0:00:00]} 47. Nb4 {[%emt 0:00:00]} Ng4+ {[%emt 0:00:00]} 48. Kh3 {[%emt 0:00:00]} Nxh6 {[%emt 0:00:00]} 49. Kh4 {[%emt 0:00:00]} Kg7 {[%emt 0:00:00]} 50. Kg5 {[%emt 0:00:00]} Rd7 {[%emt 0:00:00]} 51. g3 {[%emt 0:00:00]} Rd4 {[%emt 0:00:00]} 52. Na6 {[%emt 0:00:00]} Rg4+ {[%emt 0:00:00]} 53. Kh5 {[%emt 0:00:00]} Rxg6 {[%emt 0:00:00]} 54. Nc7 {[%emt 0:00:00]} Rc6 {[%emt 0:00:00]} 0-1

[Event "GER-ch Youth U12 2020"]
[Site "Willingen"]
[Date "2020.10.29"]
[Round "4.13"]
[White "Fruth, David"]
[Black "Möller, Maurin"]
[Result "1-0"]
[ECO "C43"]
[WhiteElo "1665"]
[BlackElo "1645"]
[Annotator "NA RC"]
[PlyCount "55"]
[EventDate "2020.10.27"]
[EventType "swiss"]
[EventRounds "7"]
[EventCountry "GER"]
[SourceTitle "playchess.com"]
[Source "ChessBase"]
[SourceQuality "1"]
[TimeControl "40/5400+30:1800+30"]

1. e4 {[%emt 0:00:00]} e5 {[%emt 0:00:00]} 2. Nf3 {[%emt 0:00:00]} Nf6 {[%emt 0:00:00]} 3. d4 {[%emt 0:00:00]} Nxe4 {[%emt 0:00:03]} 4. dxe5 {[%emt 0:00:00]} d5 {[%emt 0:00:11]} 5. Nbd2 {[%emt 0:00:00]} Nxd2 {[%emt 0:01:33]} 6. Bxd2 {[%emt 0:00:00]} Bf5 {[%emt 0:00:35]} 7. Bg5 {[%emt 0:01:08]} Be7 {[%emt 0:15:40]} 8. Bxe7 {[%emt 0:00:22]} Qxe7 {[%emt 0:00:05]} 9. Qxd5 {[%emt 0:00:05]} Qb4+ {[%emt 0:00:08]} 10. Nd2 {[%emt 0:03:48]} O-O {[%emt 0:00:21]} 11. Bd3 {[%emt 0:08:32]} Bxd3 {[%emt 0:01:43]} 12. cxd3 {[%emt 0:00:10]} Nc6 {[%emt 0:00:18]} 13. Qb3 {[%emt 0:09:37]} Nxe5 {[%emt 0:06:56]} 14. O-O-O {[%emt 0:01:11]} Qc5+ {[%emt 0:01:10]} 15. Kb1 {[%emt 0:00:38]} Rad8 {[%emt 0:12:45]} 16. Ne4 {[%emt 0:02:02]} Qc6 {[%emt 0:04:46]} 17. f3 {[%emt 0:00:32]} b5 {[%emt 0:11:19]} 18. Rc1 {[%emt 0:01:44]} Qb6 {[%emt 0:02:09]} 19. Rhd1 {[%emt 0:00:53]} a5 {[%emt 0:00:46]} 20. Rc5 {[%emt 0:00:20]} Nc6 {[%emt 0:02:05]} 21. Rxb5 {[%emt 0:00:31]} Qe3 {[%emt 0:00:15]} 22. Rc5 {[%emt 0:01:58]} Rb8 {[%emt 0:05:22]} 23. Qc3 {[%emt 0:01:08]} Nb4 {[%emt 0:01:54]} 24. Rg5 {[%emt 0:00:37]} f6 {[%emt 0:02:45]} 25. Nxf6+ {[%emt 0:00:06]} Kh8 {[%emt 0:01:08]} 26. Rxg7 {[%emt 0:00:07]} Rxf6 {[%emt 0:03:59]} 27. Qxf6 {[%emt 0:00:06]} Nd5 {[%emt 0:00:25]} 28. Re7+ {[%emt 0:00:44]} 1-0

[Event "GER-ch Youth U12 2020"]
[Site "Willingen"]
[Date "2020.10.29"]
[Round "4.14"]
[White "Grabs, Peter"]
[Black "Uhlmann, Tim"]
[Result "1/2-1/2"]
[ECO "C68"]
[WhiteElo "1674"]
[BlackElo "1523"]
[Annotator "NA RC"]
[PlyCount "78"]
[EventDate "2020.10.27"]
[EventType "swiss"]
[EventRounds "7"]
[EventCountry "GER"]
[SourceTitle "playchess.com"]
[Source "ChessBase"]
[SourceQuality "1"]
[TimeControl "40/5400+30:1800+30"]

1. e4 {[%emt 0:00:00]} e5 {[%emt 0:00:00]} 2. Nf3 {[%emt 0:00:00]} Nc6 {[%emt 0:00:00]} 3. Bb5 {[%emt 0:00:00]} a6 {[%emt 0:00:00]} 4. Bxc6 {[%emt 0:00:00]} dxc6 {[%emt 0:00:00]} 5. Nc3 {[%emt 0:00:00]} f6 {[%emt 0:00:30]} 6. d4 {[%emt 0:00:00]} exd4 {[%emt 0:00:05]} 7. Qxd4 {[%emt 0:00:00]} Qxd4 {[%emt 0:00:15]} 8. Nxd4 {[%emt 0:00:04]} c5 {[%emt 0:00:15]} 9. Nde2 {[%emt 0:00:07]} Be6 {[%emt 0:00:28]} 10. Bf4 {[%emt 0:00:45]} O-O-O {[%emt 0:00:15]} 11. f3 {[%emt 0:00:48]} Ne7 {[%emt 0:00:23]} 12. Kf2 {[%emt 0:00:20]} Ng6 {[%emt 0:00:11]} 13. Be3 {[%emt 0:00:25]} c4 {[%emt 0:00:27]} 14. Rad1 {[%emt 0:00:54]} Bd6 {[%emt 0:03:16]} 15. Nd4 {[%emt 0:10:21]} Bd7 {[%emt 0:04:14]} 16. Nd5 {[%emt 0:02:19]} Rhe8 {[%emt 0:01:39]} 17. Ne2 {[%emt 0:01:28]} Be6 {[%emt 0:03:00]} 18. Nef4 {[%emt 0:01:19]} Nxf4 {[%emt 0:10:54]} 19. Nxf4 {[%emt 0:04:07]} Bf7 {[%emt 0:01:29]} 20. Ne2 {[%emt 0:01:06]} b5 {[%emt 0:09:47]} 21. Nd4 {[%emt 0:03:13]} Kb7 {[%emt 0:04:52]} 22. Nf5 {[%emt 0:02:02]} Bf8 {[%emt 0:00:13]} 23. c3 {[%emt 0:05:52]} c5 {[%emt 0:09:06]} 24. Ke2 {[%emt 0:02:56]} g6 {[%emt 0:00:38]} 25. Ng3 {[%emt 0:02:52]} Rd3 {[%emt 0:01:30]} 26. Rd2 {[%emt 0:10:22]} Red8 {[%emt 0:00:52]} 27. Rhd1 {[%emt 0:01:14]} Kc6 {[%emt 0:00:26]} 28. Nh1 {[%emt 0:00:55]} Bg7 {[%emt 0:23:19]} 29. Nf2 {[%emt 0:00:59]} Rxd2+ {[%emt 0:05:24]} 30. Rxd2 {[%emt 0:00:39]} Rxd2+ {[%emt 0:00:07]} 31. Kxd2 {[%emt 0:00:33]} b4 {[%emt 0:01:32]} 32. Ng4 {[%emt 0:01:28]} f5 {[%emt 0:04:15]} 33. exf5 {[%emt 0:02:17]} gxf5 {[%emt 0:00:13]} 34. Bh6 {[%emt 0:06:16]} bxc3+ {[%emt 0:04:10]} 35. bxc3 {[%emt 0:00:38]} Bxc3+ {[%emt 0:00:50]} 36. Kxc3 {[%emt 0:00:08]} fxg4 {[%emt 0:00:06]} 37. fxg4 {[%emt 0:00:17]} Bg6 {[%emt 0:03:34]} 38. a3 {[%emt 0:00:57]} Be4 {[%emt 0:02:25]} 39. g3 {[%emt 0:00:17]} Bd3 {[%emt 0:00:42]} 1/2-1/2

[Event "GER-ch Youth U12 2020"]
[Site "Willingen"]
[Date "2020.10.29"]
[Round "4.15"]
[White "Zobel, Christian"]
[Black "Schreidl, Michael"]
[Result "1/2-1/2"]
[ECO "C54"]
[WhiteElo "1521"]
[BlackElo "1640"]
[Annotator "NA RC"]
[PlyCount "55"]
[EventDate "2020.10.27"]
[EventType "swiss"]
[EventRounds "7"]
[EventCountry "GER"]
[SourceTitle "playchess.com"]
[Source "ChessBase"]
[SourceQuality "1"]
[TimeControl "40/5400+30:1800+30"]

1. e4 {[%emt 0:00:00]} e5 {[%emt 0:00:00]} 2. Nf3 {[%emt 0:00:00]} Nc6 {[%emt 0:00:00]} 3. Bc4 {[%emt 0:00:00]} Bc5 {[%emt 0:00:00]} 4. c3 {[%emt 0:00:00]} Nf6 {[%emt 0:00:00]} 5. d3 {[%emt 0:00:00]} O-O {[%emt 0:00:03]} 6. O-O {[%emt 0:00:00]} d6 {[%emt 0:00:05]} 7. Bb3 {[%emt 0:00:11]} a5 {[%emt 0:00:04]} 8. Nbd2 {[%emt 0:00:22]} Be6 {[%emt 0:00:15]} 9. h3 {[%emt 0:01:07]} h6 {[%emt 0:00:51]} 10. Re1 {[%emt 0:00:15]} Re8 {[%emt 0:00:16]} 11. Nf1 {[%emt 0:00:55]} Bxb3 {[%emt 0:00:32]} 12. axb3 {[%emt 0:03:46]} Qd7 {[%emt 0:11:06]} 13. Ng3 {[%emt 0:04:23]} d5 {[%emt 0:10:20]} 14. exd5 {[%emt 0:13:11]} Qxd5 {[%emt 0:02:10]} 15. Be3 {[%emt 0:02:09]} Bxe3 {[%emt 0:01:12]} 16. Rxe3 {[%emt 0:00:44]} Rad8 {[%emt 0:02:25]} 17. Qc2 {[%emt 0:06:12]} Re6 {[%emt 0:08:55]} 18. Rae1 {[%emt 0:11:37]} Rde8 {[%emt 0:03:03]} 19. Ne4 {[%emt 0:07:57]} Nxe4 {[%emt 0:05:37]} 20. dxe4 {[%emt 0:01:49]} Qc5 {[%emt 0:02:09]} 21. Rd1 {[%emt 0:01:41]} Rd8 {[%emt 0:09:24]} 22. Rxd8+ {[%emt 0:04:11]} Nxd8 {[%emt 0:00:17]} 23. Rd3 {[%emt 0:00:05]} Rd6 {[%emt 0:00:58]} 24. Qd2 {[%emt 0:01:30]} Nc6 {[%emt 0:09:28]} 25. Rd5 {[%emt 0:02:01]} Rxd5 {[%emt 0:01:45]} 26. Qxd5 {[%emt 0:00:05]} Qxd5 {[%emt 0:00:13]} 27. exd5 {[%emt 0:00:07]} Ne7 {[%emt 0:00:34]} 28. Nxe5 {[%emt 0:04:13]} 1/2-1/2